[Event "HUN-chT Youth 2019"]
[Site "Budapest"]
[Date "2019.10.29"]
[Round "6.33"]
[White "Koszta, Benedek"]
[Black "Kelemen, Szabolcs"]
[Result "1/2-1/2"]
[ECO "B31"]
[WhiteElo "2043"]
[BlackElo "1960"]
[Annotator "NA RC"]
[PlyCount "67"]
[EventDate "2019.10.26"]
[EventType "team-tourn"]
[EventCountry "HUN"]
[SourceTitle "playchess.com"]
[Source "ChessBase"]
[SourceQuality "1"]
[TimeControl "5400+30"]

1. e4 {[%emt 0:00:00]} c5 {[%emt 0:00:00]} 2. Nf3 {[%emt 0:00:00]} Nc6 {[%emt 0:00:00]} 3. Bb5 {[%emt 0:00:00]} g6 {[%emt 0:00:00]} 4. O-O {[%emt 0:00:01]} Bg7 {[%emt 0:00:00]} 5. Re1 {[%emt 0:00:12]} Nf6 {[%emt 0:00:09]} 6. Nc3 {[%emt 0:00:50]} a6 {[%emt 0:01:57] B31: Sicilian: 2...Nc6 3 Bb5 g6} (6... O-O 7. e5 Ne8 8. Bxc6 bxc6 9. d4 cxd4 10. Qxd4 Nc7 11. Qh4 f6 12. Bh6 g5 13. Qh5 Qe8 14. Qxe8 Rxe8 15. Bxg7 Kxg7 16. Ne4 Rb8 17. exf6+ exf6 18. Nd6 Re6 {1-0 (33) Sevian,S (2666)-Nihal,S (2598) chess.com INT 2019}) 7. Bxc6 {[%emt 0:03:13]} dxc6 {[%emt 0:00:13]} 8. e5 {[%emt 0:01:48]} Nd5 {[%emt 0:00:12]} 9. Ne4 {[%emt 0:01:23]} b6 {[%emt 0:01:58]} 10. h3 {[%emt 0:06:30]} O-O {[%emt 0:01:13]} 11. d3 {[%emt 0:01:12]} a5 {[%emt 0:04:32]} 12. a3 {[%emt 0:06:12]} Ba6 $146 {[%emt 0:05:48]} ({Predecessor:} 12... Nc7 13. Be3 {1-0 (51) Uifelean,A (2243)-Popescu,B ICCF email 2011}) 13. Qe2 {[%emt 0:03:40]} Nc7 {[%emt 0:05:51]} 14. Be3 {[%emt 0:03:43]} h6 {[%emt 0:04:04]} 15. b4 {[%emt 0:03:07]} axb4 {[%emt 0:04:34]} 16. axb4 {[%emt 0:00:51]} cxb4 {[%emt 0:00:50]} 17. Bxb6 {[%emt 0:00:38]} Qb8 {[%emt 0:00:52]} 18. Bxc7 {[%emt 0:01:44]} Qxc7 {[%emt 0:00:22]} 19. Nc5 {[%emt 0:01:03]} Bb5 {[%emt 0:03:33]} 20. Qe4 {[%emt 0:04:02]} Ra5 {[%emt 0:06:32]} 21. Qxb4 {[%emt 0:08:23]} Rfa8 {[%emt 0:01:17]} 22. Rxa5 {[%emt 0:03:40]} Rxa5 {[%emt 0:05:15]} 23. c4 {[%emt 0:02:21]} Ba6 {[%emt 0:00:16]} 24. Rb1 {[%emt 0:03:53]} Bc8 {[%emt 0:08:08]} 25. d4 {[%emt 0:02:18]} Bf5 {[%emt 0:02:18]} (25... Ra7 $142 26. Qb8 Kh7) 26. Qb8+ {[%emt 0:00:47]} Qxb8 {[%emt 0:00:03]} 27. Rxb8+ {[%emt 0:00:05]} Kh7 {[%emt 0:00:05]} 28. Rb6 {[%emt 0:09:43]} Ra1+ {[%emt 0:00:15]} 29. Kh2 {[%emt 0:00:09]} Rc1 {[%emt 0:00:12]} 30. Rxc6 $2 {[%emt 0:02:39]} (30. g4 $18 Bb1 31. Nb3) 30... Rxc4 {[%emt 0:00:19]} 31. Rc7 {[%emt 0:01:25]} Rxd4 $1 {[%emt 0:00:45]} 32. Rxe7 {[%emt 0:02:52]} (32. g4 $1 $14 Bb1 33. Rxe7) 32... Rd5 $1 {[%emt 0:01:37]} 33. Nb7 {[%emt 0:07:46]} Be6 {[%emt 0:01:54]} 34. Nd6 $11 {[%emt 0:02:44]} 1/2-1/2

[Event "HUN-chT Youth 2019"]
[Site "Budapest"]
[Date "2019.10.29"]
[Round "6.34"]
[White "Tancz, Janos"]
[Black "Megyaszai, Balazs"]
[Result "0-1"]
[ECO "B84"]
[WhiteElo "1486"]
[BlackElo "1894"]
[Annotator "NA RC"]
[PlyCount "68"]
[EventDate "2019.10.26"]
[EventType "team-tourn"]
[EventCountry "HUN"]
[SourceTitle "playchess.com"]
[Source "ChessBase"]
[SourceQuality "1"]
[TimeControl "5400+30"]

1. e4 {[%emt 0:00:00]} c5 {[%emt 0:00:00]} 2. Nf3 {[%emt 0:00:00]} d6 {[%emt 0:00:07]} 3. d4 {[%emt 0:00:14]} cxd4 {[%emt 0:00:36]} 4. Nxd4 {[%emt 0:00:07]} Nf6 {[%emt 0:00:45]} 5. Nc3 {[%emt 0:00:42]} a6 {[%emt 0:01:11]} 6. Be2 {[%emt 0:01:33]} e6 {[%emt 0:01:10]} 7. Bg5 {[%emt 0:01:12]} Be7 {[%emt 0:01:03]} 8. Qd2 {[%emt 0:01:44]} b5 {[%emt 0:05:56]} 9. a3 {[%emt 0:00:45]} Bb7 {[%emt 0:03:16]} 10. f3 {[%emt 0:02:02] B95: Sicilian Najdorf: 6 Bg5 e6, unusual White 7th moves} O-O {[%emt 0:05:49]} (10... Nbd7 11. O-O O-O 12. Rad1 Rc8 13. Nb3 Qc7 14. Kh1 Rfd8 15. Qe1 h6 16. Bc1 Nf8 17. Bd3 e5 {0-1 (34) Khin,T (2541)-Zhu,C (2487) Yangon 1999}) 11. O-O-O {[%emt 0:01:07]} d5 $146 {[%emt 0:08:25]} ({Predecessor:} 11... Nbd7 12. h4 Rc8 13. g4 Nb6 14. Bxf6 Bxf6 15. g5 Bxd4 16. Qxd4 Nc4 17. Bxc4 Rxc4 18. Qxd6 {0-1 (48) Farago,S (2323)-Tian,T (2355) Budapest 2001}) 12. exd5 {[%emt 0:01:38]} Nxd5 {[%emt 0:00:59]} 13. Bxe7 {[%emt 0:00:10]} Qxe7 {[%emt 0:01:02]} 14. Nxd5 {[%emt 0:00:42]} Bxd5 {[%emt 0:00:52]} 15. Rhe1 {[%emt 0:01:38]} Nd7 {[%emt 0:04:24]} 16. Nf5 {[%emt 0:01:04]} Qf6 {[%emt 0:02:13]} 17. Ne3 {[%emt 0:01:17]} Nb6 {[%emt 0:03:53]} 18. Ng4 {[%emt 0:02:52]} Qd8 {[%emt 0:04:20]} 19. Bd3 {[%emt 0:00:32]} Rc8 {[%emt 0:04:05]} 20. Ne3 {[%emt 0:04:50]} Qc7 {[%emt 0:04:33]} 21. Ng4 {[%emt 0:01:06]} Bc4 {[%emt 0:02:42]} 22. Bxc4 {[%emt 0:01:38]} Nxc4 {[%emt 0:03:10]} 23. Qd7 {[%emt 0:00:21]} Qf4+ {[%emt 0:02:27]} 24. Kb1 {[%emt 0:02:25]} Qb8 {[%emt 0:03:25]} 25. Qd4 {[%emt 0:01:57]} Rfd8 {[%emt 0:06:11]} 26. Qf2 {[%emt 0:00:46] [#]} b4 $1 {[%emt 0:02:54]} 27. Qh4 $2 {[%emt 0:03:13] [#]} (27. Ne3 Nxa3+ 28. Ka1) 27... Nxa3+ $1 {[%emt 0:04:14]} 28. Ka2 {[%emt 0:00:45]} Nxc2 {[%emt 0:02:19]} 29. Nf6+ $19 {[%emt 0:01:19]} gxf6 {[%emt 0:03:49]} 30. Qxf6 {[%emt 0:00:28]} Nxe1 {[%emt 0:02:10]} 31. Qg5+ {[%emt 0:00:35]} Kf8 {[%emt 0:00:27]} 32. Qh6+ {[%emt 0:00:44]} Ke8 {[%emt 0:00:39]} 33. Rxd8+ {[%emt 0:00:14]} Rxd8 {[%emt 0:00:18]} 34. Qg7 {[%emt 0:00:11]} b3+ {[%emt 0:00:12]} 0-1

[Event "HUN-chT Youth 2019"]
[Site "Budapest"]
[Date "2019.10.29"]
[Round "6.35"]
[White "Kocsmar, Akos"]
[Black "Palczert, Hajnalka"]
[Result "1-0"]
[ECO "D96"]
[WhiteElo "1916"]
[BlackElo "1531"]
[Annotator "NA RC"]
[PlyCount "85"]
[EventDate "2019.10.26"]
[EventType "team-tourn"]
[EventCountry "HUN"]
[SourceTitle "playchess.com"]
[Source "ChessBase"]
[SourceQuality "1"]
[TimeControl "5400+30"]

1. d4 {[%emt 0:00:00]} Nf6 {[%emt 0:00:00]} 2. c4 {[%emt 0:00:00]} g6 {[%emt 0:00:06]} 3. Nc3 {[%emt 0:00:08]} d5 {[%emt 0:00:25]} 4. Nf3 {[%emt 0:00:14]} Bg7 {[%emt 0:02:01]} 5. Qb3 {[%emt 0:00:27]} c6 {[%emt 0:02:05]} 6. e3 {[%emt 0:00:32]} O-O {[%emt 0:01:41]} 7. Be2 {[%emt 0:00:37]} e6 {[%emt 0:04:00]} 8. O-O {[%emt 0:07:04] D95: Grünfeld: 4 Nf3 Bg7 5 e3 0-0 6 Qb3} b6 {[%emt 0:02:17]} (8... Nbd7 9. Rd1 a6 10. a4 a5 11. Qc2 Re8 12. b3 b6 13. cxd5 exd5 14. Ba3 Bb7 15. Rac1 Bh6 {½-½ (50) Zubov,A (2597)-Kamsky,G (2666) St Petersburg 2018}) 9. Qc2 {[%emt 0:02:43]} Bb7 {[%emt 0:02:58]} 10. b3 {[%emt 0:00:30]} Nbd7 {[%emt 0:02:26]} 11. Bb2 {[%emt 0:00:39]} c5 $146 {[%emt 0:00:46]} ({Predecessor:} 11... Rc8 12. Rfd1 Qc7 13. Rac1 Qb8 14. h3 Rfd8 {½-½ (14) Lerstad,B (1902)-Vink,W (1954) Rogaska Slatina 2012}) 12. Rac1 {[%emt 0:00:55]} cxd4 {[%emt 0:04:17]} 13. exd4 {[%emt 0:00:30]} Rc8 {[%emt 0:02:27]} 14. Ba3 {[%emt 0:02:10]} Re8 {[%emt 0:04:00]} 15. Nb5 {[%emt 0:00:14]} Bf8 {[%emt 0:03:05]} 16. Bxf8 {[%emt 0:00:44]} Rxf8 {[%emt 0:02:03]} 17. Nxa7 {[%emt 0:00:13]} Ra8 {[%emt 0:03:03]} 18. Nb5 {[%emt 0:00:09]} Ne4 {[%emt 0:02:18]} 19. Nd2 {[%emt 0:04:14]} Ndf6 {[%emt 0:04:27]} 20. Nxe4 {[%emt 0:01:40]} Nxe4 {[%emt 0:00:35]} 21. f3 {[%emt 0:00:07]} Nd6 {[%emt 0:05:00]} 22. Nxd6 {[%emt 0:01:46]} Qxd6 {[%emt 0:00:10]} 23. c5 {[%emt 0:00:00]} Qc6 {[%emt 0:01:24]} 24. a4 {[%emt 0:01:33]} Rfc8 {[%emt 0:02:09]} 25. Bb5 {[%emt 0:01:50]} Qc7 {[%emt 0:00:49]} 26. c6 {[%emt 0:00:20]} Ba6 {[%emt 0:00:34]} 27. Qd3 {[%emt 0:00:20]} Bxb5 {[%emt 0:01:13]} 28. axb5 {[%emt 0:00:06]} Ra5 {[%emt 0:01:47]} 29. Ra1 {[%emt 0:00:27]} Rca8 {[%emt 0:00:14]} 30. Rxa5 {[%emt 0:00:23]} Rxa5 {[%emt 0:01:23]} 31. b4 {[%emt 0:00:06]} Ra4 {[%emt 0:00:14]} 32. Qb3 {[%emt 0:00:06]} Ra7 {[%emt 0:00:43]} 33. Qb2 {[%emt 0:00:29]} Qf4 {[%emt 0:00:45]} 34. Ra1 {[%emt 0:02:21]} Rc7 {[%emt 0:01:09]} 35. Qc3 {[%emt 0:00:31]} Kf8 {[%emt 0:00:34]} 36. Ra6 {[%emt 0:01:23]} Qd6 {[%emt 0:01:33]} 37. Rxb6 {[%emt 0:00:14]} Qd8 {[%emt 0:01:14]} 38. Qc5+ {[%emt 0:00:26]} Ke8 {[%emt 0:00:34]} 39. Rb7 {[%emt 0:00:33]} Qc8 {[%emt 0:03:08]} 40. Rxc7 {[%emt 0:00:10]} Qxc7 {[%emt 0:00:06]} 41. b6 {[%emt 0:00:03]} Qf4 {[%emt 0:00:37]} 42. Qc3 {[%emt 0:00:03]} Kd8 {[%emt 0:00:41]} 43. c7+ {[%emt 0:00:06]} 1-0

[Event "HUN-chT Youth 2019"]
[Site "Budapest"]
[Date "2019.10.29"]
[Round "6.36"]
[White "Kreiter, Lilla"]
[Black "Szamko, Hanna"]
[Result "0-1"]
[ECO "C25"]
[WhiteElo "1280"]
[BlackElo "1402"]
[Annotator "NA RC"]
[PlyCount "140"]
[EventDate "2019.10.26"]
[EventType "team-tourn"]
[EventCountry "HUN"]
[SourceTitle "playchess.com"]
[Source "ChessBase"]
[SourceQuality "1"]
[TimeControl "5400+30"]

1. e4 {[%emt 0:00:00]} e5 {[%emt 0:00:00]} 2. Nc3 {[%emt 0:00:48]} Nc6 {[%emt 0:00:26]} 3. Bc4 {[%emt 0:00:30]} Bc5 {[%emt 0:00:54]} 4. Qg4 {[%emt 0:01:22]} g6 {[%emt 0:00:50]} 5. Nd5 {[%emt 0:06:24]} d6 {[%emt 0:07:35]} 6. Qd1 {[%emt 0:02:58]} Nf6 {[%emt 0:00:50]} 7. d3 {[%emt 0:02:10]} Nxd5 {[%emt 0:06:17]} 8. Bxd5 {[%emt 0:01:00]} Qe7 {[%emt 0:05:44]} 9. Be3 {[%emt 0:05:38]} Bb6 {[%emt 0:01:25]} 10. Ne2 {[%emt 0:01:53]} Be6 {[%emt 0:02:39]} 11. Bxb6 {[%emt 0:01:59]} axb6 {[%emt 0:00:51]} 12. Nc3 {[%emt 0:00:58]} O-O {[%emt 0:01:52]} 13. Qd2 {[%emt 0:01:45]} Rab8 {[%emt 0:05:25]} 14. O-O-O {[%emt 0:05:53]} Nb4 {[%emt 0:04:35]} 15. Kb1 {[%emt 0:01:19]} Bxd5 {[%emt 0:01:16]} 16. Nxd5 {[%emt 0:00:28]} Nxd5 {[%emt 0:00:30]} 17. exd5 {[%emt 0:00:11]} Ra8 {[%emt 0:00:32]} 18. h4 {[%emt 0:01:06]} c6 {[%emt 0:01:29]} 19. h5 {[%emt 0:01:44]} cxd5 {[%emt 0:01:22]} 20. hxg6 {[%emt 0:00:46]} fxg6 {[%emt 0:00:08]} 21. f3 {[%emt 0:00:37]} d4 {[%emt 0:01:50]} 22. Qb4 {[%emt 0:00:57]} Ra6 {[%emt 0:00:48]} 23. Qc4+ {[%emt 0:00:31]} Qf7 {[%emt 0:00:15]} 24. Qxf7+ {[%emt 0:00:28]} Rxf7 {[%emt 0:00:04]} 25. Rde1 {[%emt 0:01:04]} Ra8 {[%emt 0:00:53]} 26. Rhf1 {[%emt 0:00:50]} Raf8 {[%emt 0:00:07]} 27. Re4 {[%emt 0:00:20]} g5 {[%emt 0:01:02]} 28. c3 {[%emt 0:00:41]} dxc3 {[%emt 0:01:41]} 29. bxc3 {[%emt 0:00:14]} Rf4 {[%emt 0:00:13]} 30. Rd1 {[%emt 0:01:54]} R8f6 {[%emt 0:05:36]} 31. Kc2 {[%emt 0:00:43]} Kf7 {[%emt 0:06:22]} 32. Rb1 {[%emt 0:00:28]} Rxe4 {[%emt 0:01:55]} 33. dxe4 {[%emt 0:00:14]} d5 {[%emt 0:00:29]} 34. exd5 {[%emt 0:00:17]} Rd6 {[%emt 0:00:06]} 35. c4 {[%emt 0:00:27]} Kf6 {[%emt 0:00:45]} 36. Rh1 {[%emt 0:01:07]} Kg6 {[%emt 0:00:14]} 37. g4 {[%emt 0:00:41]} h6 {[%emt 0:03:10]} 38. Kd3 {[%emt 0:00:15]} b5 {[%emt 0:01:48]} 39. Rb1 {[%emt 0:00:49]} bxc4+ {[%emt 0:00:40]} 40. Kxc4 {[%emt 0:00:14]} b6 {[%emt 0:00:15]} 41. Rb5 {[%emt 0:03:34]} Rf6 {[%emt 0:04:47]} 42. Rb3 {[%emt 0:01:01]} Rd6 {[%emt 0:01:33]} 43. Rb5 {[%emt 0:01:04]} Rf6 {[%emt 0:00:10]} 44. Rb3 {[%emt 0:05:55]} Rd6 {[%emt 0:00:08]} 45. a4 {[%emt 0:01:03]} h5 {[%emt 0:00:49]} 46. Rd3 {[%emt 0:01:19]} h4 {[%emt 0:00:25]} 47. Kb5 {[%emt 0:00:33]} Kf6 {[%emt 0:00:21]} 48. Ka6 {[%emt 0:01:01]} Ke7 {[%emt 0:00:42]} 49. Kb7 {[%emt 0:00:31]} Kd7 {[%emt 0:01:07]} 50. Rc3 {[%emt 0:01:46]} Rxd5 {[%emt 0:01:08]} 51. Kxb6 {[%emt 0:00:30]} Ke6 {[%emt 0:00:26]} 52. a5 {[%emt 0:00:28]} Rd2 {[%emt 0:03:35]} 53. a6 {[%emt 0:00:40]} Rb2+ {[%emt 0:00:09]} 54. Kc6 {[%emt 0:00:34]} Ra2 {[%emt 0:00:53]} 55. Kb5 {[%emt 0:00:11]} Rb2+ {[%emt 0:00:15]} 56. Ka4 {[%emt 0:01:42]} Rb8 {[%emt 0:00:20]} 57. Ka5 {[%emt 0:01:35]} Kd5 {[%emt 0:01:56]} 58. a7 {[%emt 0:00:44]} Ra8 {[%emt 0:00:12]} 59. Ka6 {[%emt 0:00:10]} Kd4 {[%emt 0:00:15]} 60. Rc1 {[%emt 0:00:36]} Ke3 {[%emt 0:00:12]} 61. Kb7 {[%emt 0:00:24]} Rxa7+ {[%emt 0:01:12]} 62. Kxa7 {[%emt 0:00:14]} Kxf3 {[%emt 0:00:04]} 63. Re1 {[%emt 0:00:42]} e4 {[%emt 0:00:08]} 64. Rf1+ {[%emt 0:03:37]} Kxg4 {[%emt 0:00:27]} 65. Kb6 {[%emt 0:01:39]} e3 {[%emt 0:00:27]} 66. Kc5 {[%emt 0:01:47]} e2 {[%emt 0:00:15]} 67. Re1 {[%emt 0:00:50]} Kf3 {[%emt 0:00:04]} 68. Kd5 {[%emt 0:00:08]} Kf2 {[%emt 0:00:36]} 69. Rxe2+ {[%emt 0:00:06]} Kxe2 {[%emt 0:00:10]} 70. Ke4 {[%emt 0:00:03]} Kf2 0-1

[Event "HUN-chT Youth 2019"]
[Site "Budapest"]
[Date "2019.10.29"]
[Round "7.1"]
[White "Turcsanyi, Vince Gergo"]
[Black "Konyves, Almos"]
[Result "1-0"]
[ECO "B23"]
[WhiteElo "1810"]
[BlackElo "2006"]
[Annotator "NA"]
[PlyCount "43"]
[EventDate "2019.10.26"]
[EventType "team-tourn"]
[EventCountry "HUN"]
[SourceTitle "playchess.com"]
[Source "ChessBase"]
[SourceQuality "1"]
[TimeControl "5400+30"]

1. e4 {[%emt 0:00:00]} c5 {[%emt 0:00:00]} 2. Nc3 {[%emt 0:00:00]} Nc6 {[%emt 0:00:22]} 3. f4 {[%emt 0:00:00]} g6 {[%emt 0:00:17]} 4. Nf3 {[%emt 0:00:02]} Bg7 {[%emt 0:00:10]} 5. Bc4 {[%emt 0:00:10]} e6 {[%emt 0:00:20]} 6. d3 {[%emt 0:00:06]} Nge7 {[%emt 0:00:13]} 7. O-O {[%emt 0:00:13]} d6 {[%emt 0:00:28]} 8. Qe1 {[%emt 0:01:19]} a6 {[%emt 0:00:37]} 9. a4 {[%emt 0:00:43]} O-O {[%emt 0:01:14]} 10. f5 {[%emt 0:05:13] B23: Closed Sicilian: Lines without g3} d5 {[%emt 0:03:59]} 11. Bb3 {[%emt 0:06:21]} d4 {[%emt 0:07:11]} (11... dxe4 $11 {remains equal.} 12. dxe4 exf5) 12. Ne2 {[%emt 0:03:41]} exf5 {[%emt 0:01:15]} 13. Qh4 {[%emt 0:00:33]} h5 $146 {[%emt 0:04:19]} ({Predecessor:} 13... Na5 14. Ba2 c4 15. b4 cxb3 16. cxb3 fxe4 17. Ng5 h6 18. Nxf7 Rxf7 {½-½ (31) Bennett,H (2134)-Dowden,R (2190) Dunedin 2007}) 14. Ng3 {[%emt 0:03:50]} Ne5 {[%emt 0:10:35]} 15. Bg5 {[%emt 0:07:24]} Re8 {[%emt 0:04:51]} 16. exf5 {[%emt 0:04:34]} gxf5 {[%emt 0:07:05]} 17. Nxe5 {[%emt 0:10:13]} Bxe5 {[%emt 0:00:09]} 18. Qxh5 {[%emt 0:02:05]} Be6 {[%emt 0:10:33] [#]} 19. Nxf5 $18 {[%emt 0:01:22] Pin} Bxb3 {[%emt 0:01:46]} 20. Nh6+ {[%emt 0:13:33]} Kg7 {[%emt 0:00:46]} 21. cxb3 {[%emt 0:05:03]} f6 {[%emt 0:03:36]} 22. Rxf6 {[%emt 0:01:29]} 1-0

[Event "HUN-chT Youth 2019"]
[Site "Budapest"]
[Date "2019.10.29"]
[Round "7.2"]
[White "Pasztor, Balazs"]
[Black "Vanczak, Tamas"]
[Result "1/2-1/2"]
[ECO "B72"]
[WhiteElo "2152"]
[BlackElo "2327"]
[Annotator "RC"]
[PlyCount "55"]
[EventDate "2019.10.26"]
[EventType "team-tourn"]
[EventCountry "HUN"]
[SourceTitle "playchess.com"]
[Source "ChessBase"]
[SourceQuality "1"]
[TimeControl "5400+30"]

1. e4 {[%emt 0:00:00]} c5 {[%emt 0:00:00]} 2. Nf3 {[%emt 0:00:00]} d6 {[%emt 0:00:04]} 3. d4 {[%emt 0:00:00]} cxd4 {[%emt 0:00:06]} 4. Nxd4 {[%emt 0:00:02]} Nf6 {[%emt 0:00:07]} 5. Nc3 {[%emt 0:00:11]} g6 {[%emt 0:00:09]} 6. Be3 {[%emt 0:00:38]} a6 {[%emt 0:00:09]} 7. f3 {[%emt 0:02:46]} b5 {[%emt 0:00:21]} 8. a4 {[%emt 0:04:05]} b4 {[%emt 0:00:12]} 9. Na2 {[%emt 0:01:59]} e5 {[%emt 0:00:07]} 10. Nb3 {[%emt 0:01:53]} d5 {[%emt 0:00:12]} 11. Bg5 {[%emt 0:04:31]} Nbd7 {[%emt 0:00:12]} 12. exd5 {[%emt 0:05:38]} Bb7 {[%emt 0:00:39]} 13. Bd3 {[%emt 0:08:06]} Bxd5 {[%emt 0:02:54]} 14. Qe2 {[%emt 0:03:04]} Qb6 {[%emt 0:03:04]} 15. Be3 {[%emt 0:02:50]} Qb7 {[%emt 0:06:20]} 16. O-O {[%emt 0:05:14]} Bg7 {[%emt 0:02:13]} 17. Na5 {[%emt 0:09:27]} Qc7 {[%emt 0:00:26]} 18. Nc4 {[%emt 0:00:34]} a5 {[%emt 0:01:10]} 19. c3 {[%emt 0:04:38]} bxc3 {[%emt 0:17:13]} 20. Nxc3 {[%emt 0:03:00]} O-O {[%emt 0:00:43]} 21. Nb5 {[%emt 0:03:26]} Qb8 {[%emt 0:01:43]} 22. Rac1 {[%emt 0:06:33]} Bxc4 {[%emt 0:05:49]} 23. Bxc4 {[%emt 0:02:10]} Nb6 {[%emt 0:00:46]} 24. Bc5 {[%emt 0:04:46]} Rd8 {[%emt 0:04:35]} 25. b3 {[%emt 0:01:57]} Nxc4 {[%emt 0:02:38]} 26. bxc4 {[%emt 0:01:15]} Qb7 {[%emt 0:07:04]} 27. Bd6 {[%emt 0:03:35]} Qc6 {[%emt 0:08:19]} 28. Rfd1 {[%emt 0:03:17]} 1/2-1/2

[Event "HUN-chT Youth 2019"]
[Site "Budapest"]
[Date "2019.10.29"]
[Round "7.2"]
[White "Bodrogi, Bendeguz"]
[Black "Lazsadi, Kerka Lilla"]
[Result "1-0"]
[ECO "A04"]
[WhiteElo "1903"]
[BlackElo "1561"]
[Annotator "NA"]
[PlyCount "51"]
[EventDate "2019.10.26"]
[EventType "team-tourn"]
[EventCountry "HUN"]
[SourceTitle "playchess.com"]
[Source "ChessBase"]
[SourceQuality "1"]
[TimeControl "5400+30"]

1. Nf3 {[%emt 0:00:00]} e6 {[%emt 0:00:00]} 2. c4 {[%emt 0:00:53]} Nf6 {[%emt 0:01:26]} 3. g3 g6 {[%emt 0:01:41]} 4. Bg2 {[%emt 0:03:15]} Bg7 {[%emt 0:03:14]} 5. O-O {[%emt 0:00:53]} O-O {[%emt 0:01:24]} 6. Nc3 {[%emt 0:00:39]} c6 {[%emt 0:01:14]} 7. d4 {[%emt 0:01:16]} d5 {[%emt 0:01:09]} 8. b3 {[%emt 0:03:33]} Ne4 {[%emt 0:04:23] D78: Fianchetto Grünfeld: 6 0-0 c6} 9. Bb2 {[%emt 0:01:23]} (9. Qc2 Nxc3 10. Qxc3 b6 11. Bf4 Bb7 12. Rfd1 Nd7 13. Qd2 Re8 14. Rac1 Qe7 15. Qe1 Rad8 16. Bg5 {0-1 (28) Aghasaryan,R (2531)-Grandelius,N (2647) chess.com INT 2018}) 9... f5 {[%emt 0:01:04]} 10. Ne5 {[%emt 0:01:01]} Bxe5 $146 {[%emt 0:03:41]} ({Predecessor:} 10... Nd7 11. Nxe4 Nxe5 12. Nc5 Nf7 13. Qd2 b6 14. Nd3 Ba6 15. cxd5 cxd5 16. Rac1 {½-½ (42) Hokamp,S (2039)-Tillmann,F (1841) Germany 2011}) 11. dxe5 {[%emt 0:00:34]} Qb6 {[%emt 0:01:18]} 12. Rc1 {[%emt 0:06:23]} Nd7 {[%emt 0:02:27]} 13. Na4 {[%emt 0:02:04]} Qd8 {[%emt 0:01:50]} 14. f3 {[%emt 0:02:39]} Nec5 {[%emt 0:04:25]} 15. Nxc5 {[%emt 0:01:05]} Nxc5 {[%emt 0:00:14]} 16. cxd5 {[%emt 0:00:39]} Na6 {[%emt 0:11:07]} 17. d6 {[%emt 0:00:30]} Bd7 {[%emt 0:00:55]} 18. f4 {[%emt 0:00:31]} g5 {[%emt 0:05:28]} 19. Qd2 {[%emt 0:01:38]} g4 {[%emt 0:00:49]} 20. e4 {[%emt 0:00:42]} h5 {[%emt 0:03:10]} 21. Rfe1 {[%emt 0:01:27]} Re8 {[%emt 0:06:19]} 22. Qc3 {[%emt 0:00:37]} fxe4 {[%emt 0:01:53]} 23. Bxe4 {[%emt 0:00:40]} h4 {[%emt 0:01:18]} 24. Qd3 {[%emt 0:02:11]} Kh8 $18 {[%emt 0:01:10]} 25. Qe3 {[%emt 0:01:35]} Kg7 {[%emt 0:04:09]} 26. Qe2 {[%emt 0:04:48]} 1-0

[Event "HUN-chT Youth 2019"]
[Site "Budapest"]
[Date "2019.10.29"]
[Round "7.3"]
[White "Pribelszky, Bence"]
[Black "Dibusz, Domonkos"]
[Result "1/2-1/2"]
[ECO "A06"]
[WhiteElo "2191"]
[BlackElo "2088"]
[Annotator "ChessBase"]
[PlyCount "46"]
[EventDate "2019.10.26"]
[EventType "team-tourn"]
[EventCountry "HUN"]
[SourceTitle "playchess.com"]
[Source "ChessBase"]
[SourceQuality "1"]
[TimeControl "5400+30"]

1. Nf3 {[%emt 0:00:00]} d5 {[%emt 0:00:05]} 2. g3 {[%emt 0:00:00]} Nf6 {[%emt 0:01:07]} 3. Bg2 {[%emt 0:00:00]} c6 {[%emt 0:01:37]} 4. O-O {[%emt 0:00:00]} Bf5 {[%emt 0:00:19]} 5. d3 {[%emt 0:00:26]} Nbd7 {[%emt 0:01:32]} 6. Nbd2 {[%emt 0:00:06]} e6 {[%emt 0:03:02]} 7. b3 {[%emt 0:00:05]} Be7 {[%emt 0:01:03]} 8. Bb2 {[%emt 0:00:05]} O-O {[%emt 0:01:36]} 9. Nh4 {[%emt 0:01:41]} Bg6 {[%emt 0:01:13]} 10. Nxg6 {[%emt 0:03:32]} hxg6 {[%emt 0:00:02]} 11. c4 {[%emt 0:02:27]} Re8 {[%emt 0:02:45]} 12. Rc1 {[%emt 0:14:08]} Bd6 {[%emt 0:12:24]} 13. Rc2 {[%emt 0:05:13]} e5 {[%emt 0:06:08]} 14. Qc1 {[%emt 0:16:23]} a5 {[%emt 0:08:10]} 15. cxd5 {[%emt 0:03:15]} cxd5 {[%emt 0:02:22]} 16. Ba3 {[%emt 0:01:11]} Bxa3 {[%emt 0:10:30]} 17. Qxa3 {[%emt 0:00:04]} Nb8 {[%emt 0:01:43]} 18. Nb1 {[%emt 0:10:56]} Nc6 {[%emt 0:00:52]} 19. Nc3 {[%emt 0:03:18]} Nd4 {[%emt 0:03:17]} 20. Rcc1 {[%emt 0:01:27]} Rc8 {[%emt 0:05:29]} 21. Qb2 {[%emt 0:01:46]} Qd7 {[%emt 0:08:53]} 22. e3 {[%emt 0:01:34]} Ne6 {[%emt 0:01:13]} 23. Na4 {[%emt 0:04:01]} Qd6 {[%emt 0:02:36]} 1/2-1/2